bitfinex/quotes_SOLUSD_20250318
["timestamp","ask_amount","ask_price","bid_price","bid_amount"]
[1742314617291,40.82683008,123.73,123.7,138.43]
[1742314617471,40.82683008,123.72,123.7,138.43]
[1742314618084,40.82683008,123.71,123.7,0.03]
[1742314618263,40.82683008,123.71,123.7,20.03]
[1742314618976,40.82683008,123.71,123.7,0.03]
[1742314621068,25.56043788,123.71,123.7,0.03]
[1742314621477,25.98692259,123.71,123.7,0.03]
[1742314623081,25.98692259,123.71,123.67,20.03]
[1742314623082,0.56864628,123.7,123.67,0.03]
[1742314623392,25.98692259,123.68,123.67,0.03]
[1742314628186,25.56043788,123.68,123.67,0.03]
[1742314628397,25.56043788,123.69,123.68,20.0]
[1742314628584,25.56043788,123.7,123.68,20.0]
[1742314628907,25.56043788,123.69,123.68,20.0]
[1742314629973,25.56043788,123.7,123.68,20.0]
[1742314630173,25.56043788,123.7,123.67,0.03]
[1742314630174,7.24,123.74,123.7,20.0]
[1742314630390,25.56043788,123.72,123.7,20.0]
[1742314630979,0.28432314,123.74,123.7,20.0]
[1742314631276,25.56043788,123.71,123.7,20.0]
[1742314631481,25.56043788,123.72,123.7,20.0]
[1742314631688,0.14216157,123.74,123.71,20.0]
[1742314631890,25.56043788,123.74,123.73,20.0]
[1742314632092,0.063,123.75,123.74,20.0]
[1742314632295,25.62343788,123.75,123.74,20.0]
[1742314633907,26.04992259,123.75,123.74,20.0]
[1742314634412,25.76559945,123.75,123.72,138.4]
[1742314634591,25.56043788,123.73,123.72,138.4]
[1742314636279,0.20516157,123.75,123.72,138.4]
[1742314636280,25.56043788,123.74,123.72,138.4]
[1742314637685,25.56043788,123.74,123.73,20.0]
[1742314638296,0.063,123.75,123.73,20.0]
[1742314638607,25.56043788,123.74,123.73,20.0]
[1742314640190,25.62343788,123.74,123.73,20.0]
[1742314641900,0.063,123.74,123.73,20.0]
[1742314643010,0.063,123.74,123.73,158.4]
[1742314647138,0.063,123.74,123.73,183.96043788]
[1742314647313,0.063,123.74,123.73,190.25259945]
[1742314648420,0.063,123.74,123.73,190.11043788]
[1742314648935,0.063,123.74,123.73,190.25259945]
[1742314649339,0.063,123.74,123.73,164.55]
[1742314649638,0.063,123.74,123.73,138.4]
[1742314649952,25.62343788,123.74,123.73,138.4]
[1742314650415,25.62343788,123.74,123.7,138.4]
[1742314650615,25.56043788,123.73,123.69,7.24]
[1742314650840,25.56043788,123.72,123.69,7.24]
[1742314651043,25.56043788,123.73,123.72,20.0]
[1742314651532,25.98692259,123.73,123.68,139.9825]
[1742314651838,25.56043788,123.71,123.7,20.0]
[1742314652213,25.56043788,123.72,123.71,20.0]
[1742314654342,0.14216157,123.71,123.67,0.03]
[1742314654637,25.56043788,123.68,123.67,0.03]
[1742314655622,25.56043788,123.68,123.67,20.03]
[1742314656020,7.24,123.7,123.67,20.03]
[1742314656021,25.56043788,123.69,123.67,20.03]
[1742314659721,25.56043788,123.68,123.67,20.03]
[1742314662233,0.28432314,123.7,123.67,20.03]
[1742314662537,25.56043788,123.68,123.67,20.03]
[1742314664147,25.56043788,123.68,123.67,0.03]
[1742314664354,25.98692259,123.68,123.67,0.03]
[1742314670555,26.12908416,123.68,123.67,0.03]
[1742314671732,56.8166919,123.68,123.67,0.03]
[1742314673431,63.4010282,123.68,123.67,0.03]
[1742314675941,63.4010282,123.68,123.65,0.03]
[1742314676145,26.12908416,123.66,123.65,0.03]
[1742314676444,51.68952204,123.66,123.65,0.03]
[1742314676635,70.3391709,123.66,123.65,0.03]
[1742314677153,0.14216157,123.64,123.62,0.063]
[1742314677336,32.82043788,123.63,123.62,0.063]
[1742314677846,52.03873302,123.63,123.62,0.063]
[1742314678041,0.14216157,123.61,123.59,0.03]
[1742314678278,25.56043788,123.6,123.59,0.03]
[1742314679153,0.42648471,123.62,123.59,0.03]
[1742314679345,33.24692259,123.63,123.62,20.0]
[1742314679543,32.96259945,123.63,123.62,20.0]
[1742314679753,7.26,123.63,123.62,20.0]
[1742314679962,0.14216157,123.65,123.64,20.0]
[1742314680137,25.98692259,123.65,123.64,20.0]
[1742314680764,0.28432314,123.64,123.62,20.0]
[1742314681063,25.56043788,123.64,123.62,20.0]
[1742314681358,25.84476102,123.65,123.63,20.0]
[1742314682068,25.56043788,123.64,123.63,20.0]
[1742314682278,25.84476102,123.65,123.63,20.0]
[1742314682975,0.42648471,123.65,123.63,20.0]
[1742314683149,25.98692259,123.65,123.63,20.0]
[1742314683554,25.56043788,123.64,123.63,20.0]
[1742314684077,25.98692259,123.65,123.63,20.0]
[1742314684249,25.98692259,123.65,123.59,153.7776]
[1742314684250,0.42648471,123.65,123.64,20.0]
[1742314685471,7.24,123.66,123.64,20.0]
[1742314685664,0.14216157,123.69,123.67,20.0]
[1742314685865,0.063,123.7,123.68,20.0]
[1742314686167,25.56043788,123.69,123.68,20.0]
[1742314686567,25.56043788,123.69,123.67,20.0]
[1742314686864,0.063,123.7,123.67,20.0]
[1742314686865,33.24692259,123.68,123.67,20.0]
[1742314687453,0.42648471,123.67,123.66,20.0]
[1742314687652,25.98692259,123.67,123.66,20.0]
[1742314688946,25.56043788,123.67,123.66,20.0]
[1742314689849,32.96259945,123.68,123.66,20.0]
[1742314690475,25.56043788,123.67,123.66,20.0]
[1742314690873,32.82043788,123.68,123.67,20.0]
[1742314691070,25.56043788,123.69,123.67,20.0]
[1742314691383,25.56043788,123.69,123.68,20.0]
[1742314692080,25.56043788,123.69,123.67,20.0]
[1742314692253,25.56043788,123.68,123.67,20.0]
[1742314693966,25.56043788,123.69,123.67,20.0]
[1742314694360,25.56043788,123.69,123.68,20.0]
[1742314694567,25.62343788,123.7,123.68,20.0]
[1742314695374,25.56043788,123.69,123.68,20.0]
[1742314696971,25.62343788,123.7,123.68,20.0]
[1742314697174,0.063,123.7,123.68,20.0]
[1742314697352,25.62343788,123.7,123.68,20.0]
[1742314697549,25.56043788,123.69,123.68,20.0]
[1742314699168,16.36385413,123.69,123.68,20.0]
[1742314701272,16.42685413,123.69,123.68,20.0]
[1742314702579,16.85333884,123.69,123.68,20.0]
[1742314703659,16.42685413,123.69,123.68,20.0]
[1742314703885,16.85333884,123.69,123.68,20.0]
[1742314705201,16.71117727,123.69,123.66,20.0]
[1742314705491,16.36385413,123.68,123.66,20.0]
[1742314705700,16.42685413,123.69,123.67,20.0]
[1742314705996,0.063,123.69,123.68,20.0]
[1742314706385,0.063,123.69,123.68,38.01295413]
[1742314708104,0.063,123.69,123.68,176.41295413]
[1742314709466,0.063,123.7,123.68,176.41295413]
[1742314709687,0.063,123.7,123.69,17.57604273]
[1742314709890,0.063,123.7,123.69,174.76785316]
[1742314710095,0.063,123.71,123.7,20.36201043]
[1742314710274,0.063,123.71,123.7,175.12586456]
[1742314710592,0.063,123.71,123.7,156.33405413]
[1742314711296,0.063,123.71,123.7,165.51103759]
[1742314712275,0.063,123.71,123.7,1.5702]
[1742314712477,0.063,123.71,123.7,27.11103759]
[1742314713201,0.063,123.71,123.7,46.04500959]
[1742314713597,0.063,123.74,123.73,45.54083759]
[1742314713775,0.063,123.74,123.73,191.18083759]
[1742314715300,0.063,123.74,123.73,191.32299916]
[1742314715484,0.063,123.74,123.73,199.57039916]
[1742314715998,0.063,123.74,123.73,218.36220959]
[1742314716369,0.063,123.74,123.73,218.22004802]
[1742314716970,0.03,123.8,123.79,20.0]
[1742314717177,0.03,123.8,123.79,158.274]
[1742314719078,0.03,123.8,123.79,183.81483759]
[1742314719277,0.03,123.8,123.79,192.20439916]
[1742314720306,0.03,123.8,123.79,210.99620959]
[1742314721094,0.03,123.8,123.79,192.20439916]
[1742314723502,0.03,123.8,123.79,138.274]
[1742314726284,0.03,123.8,123.79,163.81483759]
[1742314728391,0.03,123.8,123.79,138.274]
[1742314730116,25.57083759,123.8,123.78,138.274]
[1742314731015,0.03,123.8,123.78,138.274]
[1742314731399,0.03,123.8,123.79,25.54083759]
[1742314733106,0.03,123.8,123.79,165.0261913]
[1742314733294,0.03,123.8,123.79,163.81483759]
[1742314733705,0.03,123.8,123.79,163.95699916]
[1742314734115,0.03,123.8,123.79,163.81483759]
[1742314734299,0.03,123.8,123.79,138.274]
[1742314736503,25.57083759,123.8,123.76,139.8173]
[1742314736695,25.54083759,123.79,123.78,20.0]
[1742314737211,0.03,123.8,123.79,20.0]
[1742314740415,25.57083759,123.8,123.79,20.0]
[1742314740915,0.03,123.8,123.79,20.0]
[1742314742421,25.57083759,123.8,123.79,20.0]
[1742314749117,16.36428542,123.8,123.79,20.0]
[1742314749826,0.03,123.8,123.79,20.0]
[1742314750120,16.36428542,123.8,123.79,20.0]
[1742314753623,16.36428542,123.8,123.75,138.274]
[1742314753806,16.33428542,123.76,123.74,0.063]
[1742314754005,16.33428542,123.75,123.74,0.063]
[1742314755526,25.54310239,123.75,123.74,0.063]
[1742314756531,51.85923596,123.75,123.74,0.063]
[1742314756736,52.00139753,123.75,123.74,0.063]
[1742314756898,18.64964886,123.74,123.7,0.063]
[1742314757107,25.54310239,123.71,123.7,0.063]
[1742314757311,25.54310239,123.71,123.7,20.063]
[1742314757723,25.54310239,123.72,123.7,20.063]
[1742314758812,25.54310239,123.71,123.7,20.063]
[1742314761649,25.9695871,123.71,123.7,0.063]
[1742314761837,44.61923596,123.71,123.7,0.063]
[1742314762035,51.85923596,123.71,123.7,0.063]
[1742314763511,52.00139753,123.71,123.7,0.063]
[1742314766250,51.85923596,123.71,123.7,0.063]
[1742314766949,52.00139753,123.71,123.7,0.063]
[1742314768535,51.85923596,123.71,123.7,0.063]
[1742314769228,59.94263596,123.71,123.7,0.063]
[1742314769429,18.933972,123.69,123.62,139.9612]
[1742314769629,25.54310239,123.63,123.62,138.304]
[1742314770156,25.54310239,123.64,123.62,138.304]
[1742314770361,25.54310239,123.64,123.63,20.0]
[1742314772442,25.54310239,123.64,123.62,20.03]
[1742314772646,25.54310239,123.63,123.62,20.03]
[1742314775354,25.9695871,123.63,123.62,20.03]
[1742314775561,25.9695871,123.63,123.62,0.03]
[1742314776233,25.54310239,123.63,123.62,0.03]
[1742314776433,25.9695871,123.64,123.62,20.03]
[1742314776652,25.54310239,123.63,123.62,20.03]
[1742314777151,16.37542287,123.63,123.62,0.03]
[1742314777359,0.14216157,123.65,123.63,20.0]
[1742314777656,16.37542287,123.64,123.63,20.0]
[1742314780253,0.063,123.7,123.66,20.0]
[1742314780550,0.063,123.7,123.63,138.274]
[1742314780551,16.37542287,123.69,123.67,20.0]
[1742314781135,25.56592332,123.68,123.67,20.0]
[1742314781661,25.85024646,123.68,123.67,20.0]
[1742314782036,25.99240803,123.68,123.67,20.0]
[1742314784259,25.99240803,123.68,123.65,20.0]
[1742314784464,25.56592332,123.66,123.65,20.0]
[1742314787232,18.71264886,123.7,123.65,183.83992332]
[1742314787233,25.56592332,123.69,123.65,183.83992332]
[1742314787434,0.063,123.7,123.69,20.0]
[1742314788551,25.62892332,123.7,123.69,20.0]
[1742314788963,26.05540803,123.7,123.69,20.0]
[1742314789165,0.28432314,123.69,123.66,138.274]
[1742314789348,25.56592332,123.67,123.64,1.531]
[1742314789665,25.56592332,123.66,123.65,20.0]
[1742314789846,0.063,123.7,123.68,20.0]
[1742314790033,0.063,123.7,123.69,20.0]
[1742314790233,0.063,123.7,123.68,25.56592332]
[1742314790448,0.063,123.7,123.69,20.0]
[1742314791367,0.063,123.7,123.68,25.56592332]
[1742314792161,0.063,123.7,123.69,47.10962332]
[1742314792639,0.063,123.7,123.69,185.52578489]
[1742314795964,0.063,123.7,123.69,192.76578489]
[1742314797775,0.063,123.7,123.69,192.62362332]
[1742314800759,0.063,123.7,123.69,167.0577]
[1742314800961,0.063,123.7,123.69,165.514]
[1742314802380,0.063,123.7,123.69,191.07992332]
[1742314803175,0.063,123.7,123.69,183.83992332]
[1742314804093,0.063,123.7,123.69,183.98208489]
[1742314808787,0.063,123.7,123.69,183.83992332]
[1742314809784,0.063,123.7,123.69,183.86992332]
[1742314810097,0.063,123.7,123.69,158.304]
[1742314810390,0.063,123.7,123.69,183.86992332]
[1742314811387,0.063,123.7,123.69,174.65133016]
[1742314817405,0.063,123.7,123.69,174.79349173]
[1742314817694,0.14216157,123.81,123.78,20.0]
[1742314817883,24.09943016,123.8,123.78,20.0]
[1742314818767,1.6726,123.8,123.79,20.0]
[1742314818970,0.03,123.8,123.79,20.0]
[1742314821281,0.03,123.8,123.78,25.50720931]
[1742314822087,0.03,123.8,123.79,25.50720931]
[1742314823102,0.03,123.8,123.79,163.86037088]
[1742314823984,0.03,123.8,123.79,182.65218131]
[1742314824174,0.03,123.8,123.79,187.42961922]
[1742314825178,0.03,123.83,123.82,138.26016157]
[1742314825386,0.03,123.83,123.82,171.00737088]
[1742314826400,0.03,123.83,123.82,170.86520931]
[1742314826605,0.03,123.83,123.82,171.00737088]
[1742314828389,0.03,123.83,123.82,189.79918131]
[1742314828601,0.03,123.83,123.82,217.18001376]
[1742314828802,0.063,123.84,123.82,217.18001376]
[1742314828978,0.063,123.84,123.83,71.94330829]
[1742314829297,0.063,123.87,123.86,20.14216157]
[1742314829491,0.063,123.87,123.86,71.96550445]
[1742314829697,0.063,123.87,123.86,73.17577043]
[1742314830175,6.61760821,123.95,123.92,20.0]
[1742314830373,25.50720931,123.95,123.92,157.1005]
[1742314830994,7.5398,123.96,123.92,157.1005]
[1742314831211,25.50720931,123.95,123.92,157.1005]
[1742314831785,7.5398,123.96,123.92,157.1005]
[1742314832002,33.04700931,123.96,123.92,157.1005]
[1742314832225,25.50720931,123.95,123.92,157.1005]
[1742314833007,7.5398,123.96,123.92,157.1005]
[1742314833008,25.50720931,123.94,123.92,157.1005]
[1742314833598,25.50720931,123.93,123.9,20.0]
[1742314833822,25.50720931,123.91,123.9,20.0]
[1742314834018,25.50720931,123.93,123.91,20.0]
[1742314834191,32.74720931,123.94,123.92,20.0]
[1742314834388,0.03,123.95,123.93,20.0]
[1742314834610,0.03,123.95,123.94,20.0]
[1742314834808,25.53720931,123.95,123.94,20.0]
[1742314835932,25.53720931,123.95,123.93,20.0]
[1742314836314,25.53720931,123.95,123.94,20.0]
[1742314836514,0.03,123.95,123.94,20.0]
[1742314836912,0.03,123.95,123.93,45.50720931]
[1742314837211,0.03,123.95,123.9,33.95743987]
[1742314837212,0.03,123.95,123.94,20.0]
[1742314839007,0.03,123.95,123.94,162.60770931]
[1742314839514,0.03,123.95,123.94,137.1005]
[1742314840800,0.03,123.95,123.94,162.60770931]
[1742314841004,0.03,123.95,123.94,169.84770931]
[1742314841198,0.03,123.95,123.94,169.98987088]
[1742314841604,0.03,123.95,123.94,169.84770931]
[1742314845197,0.03,123.95,123.94,169.98987088]
[1742314845691,0.03,123.95,123.94,169.84770931]
[1742314846899,0.03,123.95,123.94,144.3405]
[1742314847099,0.03,123.95,123.94,169.84770931]
[1742314847721,0.03,123.95,123.94,137.1005]
[1742314847897,0.03,123.95,123.94,162.60770931]
[1742314849006,0.03,123.95,123.94,137.1005]
[1742314852023,0.03,123.95,123.94,153.52924687]
[1742314852201,0.03,123.95,123.94,155.18604687]
[1742314852397,0.03,123.95,123.94,155.0438853]
[1742314852618,0.03,123.95,123.94,155.18604687]
[1742314854824,114.71942,124.0,123.96,137.0705]
[1742314855013,114.71942,124.0,123.98,16.2865853]
[1742314855207,114.71942,124.0,123.98,25.42484993]
[1742314855517,114.71942,124.0,123.98,162.49534993]
[1742314856139,114.71942,124.0,123.98,137.0705]
[1742314859631,114.71942,124.0,123.98,162.49534993]
[1742314860409,114.71942,124.0,123.98,137.0705]
[1742314864906,114.71942,124.0,123.98,162.49534993]
[1742314865111,114.71942,124.0,123.99,25.42484993]
[1742314865315,114.71942,124.0,123.99,162.49534993]
[1742314865626,114.71942,124.0,123.99,137.0705]
[1742314866405,114.71942,124.0,123.99,162.49534993]
[1742314867130,114.71942,124.0,123.99,137.0705]
[1742314868537,114.71942,124.0,123.99,162.49534993]
[1742314868746,114.71942,124.0,123.99,170.34414993]
[1742314868921,25.42484993,124.07,124.03,20.0]
[1742314869234,0.03,124.08,124.06,25.42484993]
[1742314869413,0.03,124.08,124.06,51.59592993]
[1742314870444,0.03,124.08,124.06,26.17108]
[1742314870619,25.45484993,124.08,124.06,26.17108]
[1742314871009,25.42484993,124.07,124.06,20.0]
[1742314871330,25.42484993,124.07,124.04,18.95108]
[1742314871526,25.42484993,124.06,124.04,18.95108]
[1742314872442,0.03,124.08,124.07,20.0]
[1742314873247,25.45484993,124.08,124.07,20.0]
[1742314874343,0.03,124.08,124.07,45.42484993]
[1742314874647,0.03,124.08,124.07,46.63344399]
[1742314874835,0.03,124.08,124.07,65.58452399]
[1742314875140,0.03,124.08,124.07,20.0]
[1742314878860,0.03,124.08,124.06,25.42484993]
[1742314879646,0.03,124.08,124.06,44.37592993]
[1742314879821,0.03,124.08,124.07,46.63352631]
[1742314883936,0.03,124.08,124.07,65.58460631]
[1742314884133,0.03,124.08,124.07,40.15975638]
[1742314884337,0.03,124.08,124.07,38.95108]
[1742314884931,25.45484993,124.08,124.06,18.95108]
[1742314885650,0.03,124.08,124.06,18.95108]
[1742314886334,25.45484993,124.08,124.06,18.95108]
[1742314886539,25.42484993,124.07,124.06,18.95108]
[1742314886846,25.42484993,124.07,124.01,20.50318]
[1742314887036,25.42484993,124.05,124.01,45.92802993]
[1742314887349,25.42484993,124.05,124.04,20.0]
[1742314887854,25.42484993,124.05,124.01,18.95108]
[1742314888028,25.42484993,124.03,124.01,18.95108]
[1742314888230,25.42484993,124.05,124.04,20.0]
[1742314888731,26.99954993,124.08,124.04,20.0]
[1742314888925,25.42484993,124.06,124.04,20.0]
[1742314889133,25.42484993,124.05,124.04,20.0]
[1742314889334,1.5747,124.08,124.04,20.0]
[1742314889536,25.42484993,124.06,124.05,20.0]
[1742314889940,1.5747,124.08,124.05,20.0]
[1742314890144,25.45484993,124.08,124.07,20.0]
[1742314891033,25.45484993,124.08,124.07,38.95108]
[1742314891034,0.03,124.08,124.07,38.95108]
[1742314892349,25.45484993,124.08,124.07,38.95108]
[1742314893452,25.45484993,124.08,124.07,18.95108]
[1742314895461,50.87969986,124.08,124.02,18.95108]
[1742314895759,25.42484993,124.05,124.02,18.95108]
[1742314898740,25.42484993,124.06,124.05,20.0]
[1742314901063,25.45484993,124.08,124.05,20.0]
[1742314901265,25.42484993,124.07,124.05,20.0]
[1742314902062,25.42484993,124.06,124.05,20.0]
[1742314906658,25.5670115,124.06,124.0,20.52278]
[1742314906835,25.42484993,124.01,124.0,0.063]
[1742314910372,25.42484993,124.01,124.0,20.063]
[1742314912758,25.42484993,124.01,124.0,0.063]
[1742314916755,25.42484993,124.01,124.0,20.063]
[1742314917273,25.42484993,124.01,124.0,0.063]
[1742314918184,25.45484993,124.01,124.0,0.063]
[1742314919483,33.51864993,124.01,124.0,0.063]
[1742314919784,25.45484993,124.01,124.0,0.063]
[1742314920185,33.51864993,124.01,124.0,0.063]
[1742314920355,52.5947835,124.01,124.0,0.063]
[1742314920555,0.42648471,124.0,123.95,0.063]
[1742314920771,25.42484993,123.96,123.95,0.063]
[1742314925074,25.42484993,123.96,123.95,20.063]
[1742314926177,25.42484993,123.96,123.95,0.063]
[1742314926755,50.84969986,123.96,123.95,0.063]
[1742314929080,58.91679986,123.96,123.95,0.063]
[1742314929288,60.96388457,123.96,123.95,0.063]
[1742314929581,0.42648471,123.95,123.93,20.0]
[1742314929888,32.64484993,123.94,123.9,20.0]
[1742314930189,7.22,123.94,123.92,20.0]
[1742314930987,25.42484993,123.93,123.92,20.0]
[1742314933788,25.42484993,123.93,123.9,20.0]
[1742314934574,25.42484993,123.91,123.89,0.063]
[1742314934779,25.42484993,123.9,123.89,20.063]
[1742314936985,25.42484993,123.9,123.89,0.063]
[1742314937196,16.31128892,123.9,123.89,0.063]
[1742314937378,88.7764446,123.9,123.89,0.063]
[1742314938191,89.20292931,123.9,123.89,0.063]
[1742314938370,23.95777363,123.9,123.89,0.063]
[1742314938890,89.20292931,123.9,123.89,0.063]
[1742314941263,0.14216157,123.93,123.89,20.063]
[1742314941465,7.22,123.94,123.91,20.0]
[1742314941883,25.48772074,123.93,123.91,20.0]
[1742314942668,25.48772074,123.92,123.91,20.0]
[1742314944894,25.48772074,123.92,123.89,0.063]
[1742314945085,25.48772074,123.9,123.89,0.063]
[1742314945287,25.48772074,123.9,123.89,20.063]
[1742314946210,0.42648471,123.93,123.9,20.0]
[1742314946509,25.48772074,123.93,123.91,20.0]
[1742314946904,25.48772074,123.93,123.92,20.0]
[1742314950295,32.70772074,123.96,123.92,20.0]
[1742314950476,25.48772074,123.96,123.94,20.0]
[1742314950677,25.48772074,123.97,123.95,20.0]
[1742314950990,25.48772074,123.98,123.96,20.0]
[1742314951397,0.03,124.0,123.98,20.0]
[1742314951603,25.51772074,124.0,123.98,20.0]
[1742314951782,0.03,124.0,123.98,20.0]
[1742314952097,0.03,124.0,123.99,20.0]
[1742314952305,0.03,124.0,123.98,44.43880074]
[1742314953170,0.03,124.0,123.99,53.07502074]
[1742314953397,0.03,124.0,123.99,72.02610074]
[1742314953577,0.03,124.01,123.99,72.02610074]
[1742314953902,0.03,124.01,124.0,26.69692413]
[1742314954898,0.03,124.08,124.03,20.0]
[1742314955078,0.03,124.08,124.07,20.0]
[1742314955588,25.51772074,124.08,124.07,20.0]
[1742314957685,25.51772074,124.08,124.04,18.95108]
[1742314957886,25.48772074,124.05,124.04,20.0]
[1742314961108,25.48772074,124.05,124.04,20.0]
[1742314965210,7.22,124.07,124.06,20.0]
[1742314965418,25.48772074,124.07,124.06,20.0]
[1742314966414,25.48772074,124.07,124.05,20.0]
[1742314966607,25.48772074,124.06,124.05,20.0]
[1742314969889,25.48772074,124.07,124.05,20.0]
[1742314972815,25.48772074,124.06,124.05,20.0]
[1742314978917,32.70772074,124.06,124.03,20.0]
[1742314979119,25.48772074,124.04,124.0,18.95108]
[1742314979428,25.48772074,124.02,124.0,18.95108]
[1742314980608,25.48772074,124.02,124.01,20.0]
[1742314980813,25.48772074,124.02,124.0,20.0]
[1742314981017,25.48772074,124.01,123.97,18.95108]
[1742314981312,25.48772074,124.01,124.0,20.0]
[1742314982395,25.48772074,124.01,123.96,20.47518]
[1742314982724,25.48772074,123.98,123.96,18.95108]
[1742314982892,25.48772074,123.99,123.98,20.0]
[1742314983526,25.48772074,123.99,123.96,18.95108]
[1742314983817,25.48772074,123.99,123.98,20.0]
[1742314984017,25.48772074,123.99,123.96,18.95108]
[1742314984393,18.64964886,124.01,123.97,20.0]
[1742314984595,25.48772074,123.98,123.97,20.0]
[1742314986218,25.48772074,123.98,123.95,0.063]
[1742314986414,25.48772074,123.96,123.95,0.063]
[1742314987431,32.70772074,123.96,123.95,0.063]
[1742314990126,58.62192619,123.96,123.95,0.063]
[1742314990624,33.13420545,123.96,123.95,0.063]
[1742314991924,58.62192619,123.96,123.95,0.063]
[1742314992718,0.42648471,123.94,123.89,0.063]
[1742314992927,25.48772074,123.9,123.89,0.063]
[1742314993098,25.48772074,123.9,123.89,20.063]
[1742314997110,7.22,123.92,123.9,20.0]
[1742314997301,25.48772074,123.91,123.9,20.0]
[1742314997701,7.22,123.92,123.9,20.0]
[1742314997927,25.48772074,123.93,123.91,20.0]
[1742314998318,25.48772074,123.92,123.91,20.0]
[1742314998522,25.48772074,123.92,123.89,0.063]
[1742314998723,25.48772074,123.92,123.91,20.0]
[1742314999438,25.48772074,123.96,123.94,20.0]
[1742314999738,25.48772074,123.97,123.95,20.0]
[1742314999920,25.48772074,123.98,123.96,20.0]
[1742315002634,25.48772074,123.98,123.96,20.063]
[1742315003214,25.48772074,123.97,123.96,20.063]
[1742315003815,25.48772074,123.97,123.96,0.063]
[1742315004445,25.91420545,123.97,123.96,0.063]
[1742315006728,44.56385431,123.97,123.96,0.063]
[1742315006926,70.19373662,123.97,123.96,0.063]
[1742315007638,25.48772074,123.92,123.89,0.063]
[1742315007833,25.48772074,123.92,123.9,20.0]
[1742315008223,19.07613357,123.96,123.91,20.0]
[1742315008566,25.48772074,123.94,123.89,45.55072074]
[1742315010642,25.48772074,123.93,123.89,0.063]
[1742315010824,25.48772074,123.92,123.91,20.0]
[1742315011029,25.48772074,123.93,123.92,20.0]
[1742315011630,25.48772074,123.93,123.91,20.0]
[1742315013121,25.48772074,123.93,123.89,20.063]
[1742315013442,19.07613357,123.95,123.91,20.0]
[1742315013443,0.28432314,123.94,123.91,20.0]
[1742315015434,19.07613357,123.94,123.91,20.0]
[1742315015640,0.42648471,123.92,123.91,20.0]
[1742315016655,25.91420545,123.92,123.91,20.0]
[1742315017151,25.91420545,123.92,123.91,20.063]
[1742315018030,0.42648471,123.92,123.91,20.063]
[1742315019951,25.91420545,123.92,123.91,0.063]
[1742315020140,44.56385431,123.92,123.91,0.063]
[1742315021758,0.42648471,123.93,123.91,20.063]
[1742315022362,25.77204388,123.93,123.91,20.063]
[1742315022960,18.79181043,123.95,123.91,0.063]
[1742315023167,0.28432314,123.94,123.91,0.063]
[1742315023459,44.27953117,123.95,123.91,25.55072074]
[1742315023460,25.48772074,123.95,123.91,25.55072074]
[1742315023630,32.87988231,123.96,123.91,25.55072074]
[1742315023830,0.28432314,123.95,123.91,25.55072074]
[1742315024663,25.77204388,123.95,123.93,20.0]
[1742315025961,7.39216157,123.96,123.91,20.063]
[1742315026135,7.25,123.96,123.93,45.48772074]
[1742315026533,0.03,123.96,123.95,20.0]
[1742315026738,0.03,123.96,123.94,25.48772074]
[1742315030961,0.03,123.96,123.95,20.0]
[1742315032362,25.94420545,123.96,123.95,20.0]
[1742315032538,25.94420545,123.96,123.94,0.063]
[1742315032539,25.94420545,123.96,123.94,20.063]
[1742315032736,25.48772074,123.95,123.94,20.063]
[1742315033256,25.48772074,123.95,123.94,0.063]